bitfinex/quotes_BTCUSD_20251212
["timestamp","ask_amount","ask_price","bid_price","bid_amount"]
[1765539975960,0.27189106,92396.0,92395.0,0.28317956]
[1765539976340,0.02929106,92396.0,92395.0,0.28317956]
[1765539976553,0.003,92396.0,92395.0,0.28317956]
[1765539976939,0.003,92396.0,92395.0,0.21646192]
[1765539980558,0.003,92396.0,92395.0,0.25544192]
[1765539980785,0.003,92396.0,92395.0,0.28248956]
[1765539982717,0.01731058,92399.0,92398.0,0.2164549]
[1765539983045,0.01731058,92399.0,92398.0,0.2323549]
[1765539983248,0.01731058,92399.0,92398.0,0.2554349]
[1765539983843,0.01731058,92399.0,92398.0,0.2564349]
[1765539989362,0.00023058,92399.0,92398.0,0.2564349]
[1765539989735,0.00023058,92399.0,92398.0,0.29536545]
[1765539990657,0.00023058,92399.0,92398.0,0.2564349]
[1765539991843,0.00023058,92399.0,92398.0,0.2174549]
[1765539992468,0.00023058,92399.0,92398.0,0.21784366]
[1765539993251,0.00023058,92399.0,92398.0,0.21684366]
[1765539993870,0.00123058,92399.0,92398.0,0.21684366]
[1765539998498,0.00123058,92399.0,92398.0,0.25577421]
[1765539999439,0.00123058,92399.0,92398.0,0.21684366]
[1765540000981,0.01510345,92399.0,92398.0,0.21684366]
[1765540001180,0.05325345,92399.0,92398.0,0.21684366]
[1765540001409,0.03047345,92399.0,92398.0,0.21684366]
[1765540001796,0.01510345,92399.0,92398.0,0.21684366]
[1765540010455,0.01510345,92399.0,92398.0,0.03933498]
[1765540010655,0.09492571,92399.0,92398.0,0.00038876]
[1765540010858,0.34952826,92399.0,92398.0,0.00038876]
[1765540011654,0.39403225,92399.0,92398.0,0.00038876]
[1765540013423,0.31420999,92399.0,92398.0,0.00038876]
[1765540036898,0.09775744,92399.0,92398.0,0.00038876]
[1765540037291,0.31420999,92399.0,92398.0,0.00038876]
[1765540037527,0.09775744,92399.0,92398.0,0.00038876]
[1765540038538,0.09775744,92399.0,92398.0,0.21684366]
[1765540038833,0.09755744,92399.0,92398.0,0.21684366]
[1765540039534,0.09755744,92399.0,92398.0,0.00038876]
[1765540039890,0.09755744,92399.0,92398.0,0.21684366]
[1765540042274,0.01510345,92399.0,92398.0,0.21684366]
[1765540042496,0.01992345,92399.0,92398.0,0.21684366]
[1765540042738,0.01992345,92399.0,92398.0,0.25789366]
[1765540042875,0.01992345,92399.0,92398.0,0.23301366]
[1765540043057,0.01992345,92399.0,92398.0,0.25789366]
[1765540043260,0.01831058,92399.0,92398.0,0.29683988]
[1765540043492,0.01831058,92399.0,92398.0,0.00038876]
[1765540043713,0.01831058,92399.0,92398.0,0.21684366]
[1765540044484,0.11129703,92399.0,92398.0,0.00038876]
[1765540044698,0.02444058,92399.0,92398.0,0.21684366]
[1765540045258,0.02344058,92399.0,92398.0,0.21684366]
[1765540046338,0.01831058,92399.0,92398.0,0.21684366]
[1765540064925,0.01831058,92399.0,92398.0,0.25578988]
[1765540065565,0.01831058,92399.0,92398.0,0.21684366]
[1765540067125,0.01831058,92399.0,92398.0,0.2558068]
[1765540068390,0.01831058,92399.0,92398.0,0.21684366]
[1765540071408,0.01831058,92399.0,92398.0,0.25580664]
[1765540071620,0.01831058,92399.0,92398.0,0.21684366]
[1765540072236,0.01831058,92399.0,92398.0,0.25580664]
[1765540073259,0.01831058,92399.0,92398.0,0.21684366]
[1765540074633,0.04524058,92399.0,92398.0,0.21684366]
[1765540074779,0.06840058,92399.0,92398.0,0.21684366]
[1765540076320,0.39259039,92399.0,92398.0,0.00038876]
[1765540076477,0.41830741,92399.0,92398.0,0.00038876]
[1765540077095,0.37380342,92399.0,92398.0,0.00038876]
[1765540077297,0.41830741,92399.0,92398.0,0.00038876]
[1765540079119,0.13419087,92399.0,92398.0,0.00038876]
[1765540079319,0.04685345,92399.0,92398.0,0.00038876]
[1765540079685,0.34963696,92399.0,92398.0,0.00038876]
[1765540079891,0.33084999,92399.0,92398.0,0.00038876]
[1765540081755,0.11991184,92399.0,92398.0,0.00038876]
[1765540081972,0.3688663,92399.0,92398.0,0.00038876]
[1765540082337,0.15241375,92399.0,92398.0,0.21684366]
[1765540083173,0.15341375,92399.0,92398.0,0.00038876]
[1765540083516,0.15241375,92399.0,92398.0,0.00038876]
[1765540083794,0.15341375,92399.0,92398.0,0.00038876]
[1765540083967,0.3698663,92399.0,92398.0,0.00038876]
[1765540085318,0.46245623,92399.0,92398.0,0.00038876]
[1765540085534,0.24600368,92399.0,92398.0,0.00038876]
[1765540085865,0.46245623,92399.0,92398.0,0.00038876]
[1765540087121,0.50696022,92399.0,92398.0,0.00038876]
[1765540088966,0.46245623,92399.0,92398.0,0.00038876]
[1765540089183,0.50696022,92399.0,92398.0,0.00038876]
[1765540091157,0.41437029,92399.0,92398.0,0.00038876]
[1765540108696,0.38186838,92399.0,92398.0,0.00038876]
[1765540113952,0.39269194,92399.0,92398.0,0.00038876]
[1765540114951,0.38186838,92399.0,92398.0,0.00038876]
[1765540120086,0.16541583,92399.0,92398.0,0.21684366]
[1765540122302,0.16541583,92399.0,92398.0,0.00038876]
[1765540123042,0.00223058,92399.0,92398.0,0.22855366]
[1765540123294,0.00223058,92399.0,92398.0,0.26773366]
[1765540123501,0.01931058,92399.0,92398.0,0.26773366]
[1765540124084,0.01831058,92399.0,92398.0,0.26773366]
[1765540124288,0.01831058,92399.0,92398.0,0.26873366]
[1765540125053,0.01731058,92399.0,92398.0,0.26873366]
[1765540126499,0.01731058,92399.0,92398.0,0.30765296]
[1765540127853,0.01731058,92399.0,92398.0,0.26873366]
[1765540129670,0.01731058,92399.0,92398.0,0.30765296]
[1765540130416,0.01731058,92399.0,92398.0,0.26873366]
[1765540135442,0.01731058,92399.0,92398.0,0.21784366]
[1765540136023,0.01731058,92399.0,92398.0,0.21684366]
[1765540140468,0.01731058,92399.0,92398.0,0.00038876]
[1765540140670,0.32937712,92399.0,92398.0,0.00038876]
[1765540141069,0.08987457,92399.0,92398.0,0.21684366]
[1765540141251,0.02932058,92399.0,92398.0,0.21684366]
[1765540141476,0.01731058,92399.0,92398.0,0.21684366]
[1765540141681,0.01931058,92399.0,92398.0,0.22896366]
[1765540141931,0.01831058,92399.0,92398.0,0.22896366]
[1765540142575,0.01931058,92399.0,92398.0,0.22896366]
[1765540143554,0.01931058,92399.0,92398.0,0.21684366]
[1765540160578,0.23576313,92399.0,92398.0,0.00038876]
[1765540160752,0.01931058,92399.0,92398.0,0.21684366]
[1765540163946,0.00223058,92399.0,92398.0,0.21684366]
[1765540164105,0.01931058,92399.0,92398.0,0.21684366]
[1765540164424,0.09979457,92399.0,92398.0,0.21684366]
[1765540164974,0.09285487,92399.0,92398.0,0.21684366]
[1765540165184,0.11654487,92399.0,92398.0,0.21684366]
[1765540165399,0.09285487,92399.0,92398.0,0.21684366]
[1765540165815,0.04835088,92399.0,92398.0,0.21684366]
[1765540166075,0.03127088,92399.0,92398.0,0.21684366]
[1765540166293,0.04835088,92399.0,92398.0,0.21684366]
[1765540166471,0.04835088,92399.0,92398.0,0.25576296]
[1765540166678,0.08915375,92399.0,92398.0,0.03930806]
[1765540166885,0.35011029,92399.0,92398.0,0.00038876]
[1765540168098,0.11690744,92399.0,92398.0,0.00038876]
[1765540168297,0.04871345,92399.0,92398.0,0.21684366]
[1765540169328,0.02092345,92399.0,92398.0,0.21684366]
[1765540169500,0.00384345,92399.0,92398.0,0.25588366]
[1765540169704,0.02092345,92399.0,92398.0,0.25588366]
[1765540170437,0.02092345,92399.0,92398.0,0.23333366]
[1765540170650,0.01992345,92399.0,92398.0,0.23333366]
[1765540170994,0.01892345,92399.0,92398.0,0.23333366]
[1765540171424,0.01892345,92399.0,92398.0,0.23433366]
[1765540174046,0.00184345,92399.0,92398.0,0.23433366]
[1765540174220,0.01892345,92399.0,92398.0,0.25688366]
[1765540174611,0.01731058,92399.0,92398.0,0.25688366]
[1765540174848,0.01731058,92399.0,92398.0,0.29580296]
[1765540175087,0.01731058,92399.0,92398.0,0.25688366]
[1765540179563,0.00023058,92399.0,92398.0,0.25688366]
[1765540191184,0.00023058,92399.0,92398.0,0.27396366]
[1765540237387,0.00023058,92399.0,92398.0,0.31709164]
[1765540237585,0.00023058,92399.0,92398.0,0.27396366]
[1765540237787,0.00023058,92399.0,92398.0,0.31709164]
[1765540240359,0.00023058,92399.0,92398.0,0.27396366]
[1765540245448,0.00023058,92399.0,92398.0,0.56466366]
[1765540245805,0.01707475,92423.0,92422.0,0.24360869]
[1765540246161,0.01707475,92423.0,92422.0,0.26662869]
[1765540246361,0.01776625,92423.0,92422.0,0.24360869]
[1765540246768,0.01776625,92423.0,92422.0,0.22818869]
[1765540247455,0.02176625,92423.0,92422.0,0.22818869]
[1765540248061,0.02176625,92423.0,92422.0,0.24360869]
[1765540249380,0.02576625,92423.0,92422.0,0.24460869]
[1765540250006,0.02576625,92423.0,92422.0,0.26762869]
[1765540253824,0.0257715,92423.0,92422.0,0.26762869]
[1765540255556,0.0257715,92423.0,92422.0,0.22918869]
[1765540266910,0.0257715,92423.0,92422.0,0.21739869]
[1765540267849,0.35218567,92423.0,92422.0,0.001]
[1765540268052,0.39668966,92423.0,92422.0,0.001]
[1765540273624,0.33926184,92423.0,92422.0,0.001]
[1765540278988,0.12286549,92423.0,92422.0,0.001]
[1765540279196,0.08172549,92423.0,92422.0,0.001]
[1765540279405,0.35650881,92423.0,92422.0,0.001]
[1765540279623,0.33772184,92423.0,92422.0,0.001]
[1765540280977,0.32064184,92423.0,92422.0,0.001]
[1765540281183,0.33772184,92423.0,92422.0,0.001]
[1765540284812,0.44490195,92423.0,92422.0,0.001]
[1765540285240,0.29321785,92423.0,92422.0,0.001]
[1765540285461,0.33772184,92423.0,92422.0,0.001]
[1765540290748,0.12132549,92423.0,92422.0,0.001]
[1765540291151,0.33772184,92423.0,92422.0,0.001]
[1765540291573,0.12132549,92423.0,92422.0,0.001]
[1765540291819,0.0768215,92423.0,92422.0,0.001]
[1765540291953,0.0768215,92423.0,92422.0,0.21739869]
[1765540292170,0.12132549,92423.0,92422.0,0.21739869]
[1765540292594,0.09787549,92423.0,92422.0,0.001]
[1765540292797,0.35717881,92423.0,92422.0,0.001]
[1765540293136,0.33839184,92423.0,92422.0,0.001]
[1765540312791,0.38841023,92423.0,92422.0,0.001]
[1765540315812,0.42090587,92423.0,92422.0,0.001]
[1765540329905,0.40382587,92423.0,92422.0,0.001]
[1765540330096,0.42090587,92423.0,92422.0,0.001]
[1765540330838,0.28518349,92423.0,92422.0,0.001]
[1765540331107,0.24216785,92423.0,92422.0,0.001]
[1765540331887,0.0257715,92423.0,92422.0,0.001]
[1765540332101,0.24216785,92423.0,92422.0,0.001]
[1765540332934,0.0257715,92423.0,92422.0,0.001]
[1765540334003,0.0257715,92423.0,92422.0,0.21739869]
[1765540334642,0.0257715,92423.0,92422.0,0.001]
[1765540335824,0.0257715,92423.0,92422.0,0.21739869]
[1765540340437,0.0257715,92423.0,92422.0,0.24116869]
[1765540340716,0.0257715,92423.0,92422.0,0.25691869]
[1765540341394,0.0257715,92423.0,92422.0,0.23314869]
[1765540341546,0.0257715,92423.0,92422.0,0.21739869]
[1765540351786,0.29261785,92423.0,92422.0,0.001]
[1765540352287,0.37960905,92423.0,92422.0,0.001]
[1765540352462,0.42411304,92423.0,92422.0,0.001]
[1765540357269,0.31385184,92423.0,92422.0,0.001]
[1765540357819,0.09745549,92423.0,92422.0,0.21739869]
[1765540358844,0.09745549,92423.0,92422.0,0.001]
[1765540359185,0.31385184,92423.0,92422.0,0.001]
[1765540359629,0.09745549,92423.0,92422.0,0.21739869]
[1765540360080,0.31385184,92423.0,92422.0,0.001]
[1765540362107,0.33712184,92423.0,92422.0,0.001]
[1765540402516,0.33708184,92423.0,92422.0,0.001]
[1765540403551,0.09741549,92423.0,92422.0,0.21739869]
[1765540404475,0.08203549,92423.0,92422.0,0.21739869]
[1765540404687,0.0375315,92423.0,92422.0,0.21739869]
[1765540406316,0.0204915,92423.0,92422.0,0.21739869]
[1765540406527,0.0375315,92423.0,92422.0,0.21739869]
[1765540406899,0.0257315,92423.0,92422.0,0.21739869]
[1765540410873,0.0257315,92423.0,92422.0,0.001]
[1765540411053,0.0257315,92423.0,92422.0,0.21739869]
[1765540414024,0.0086915,92423.0,92422.0,0.21739869]
[1765540414250,0.0086915,92423.0,92422.0,0.26784869]
[1765540414561,0.0257315,92423.0,92422.0,0.26784869]
[1765540415118,0.0257315,92423.0,92422.0,0.21739869]
[1765540415333,0.0217315,92423.0,92422.0,0.21639869]
[1765540415761,0.0227315,92423.0,92422.0,0.24888747]
[1765540415965,0.0187315,92423.0,92422.0,0.24888747]
[1765540416226,0.0197315,92423.0,92422.0,0.24888747]
[1765540416987,0.08722522,92423.0,92422.0,0.24888747]
[1765540417189,0.10238549,92423.0,92422.0,0.24888747]
[1765540417368,0.0348415,92423.0,92422.0,0.24888747]
[1765540417772,0.0197315,92423.0,92422.0,0.24888747]
[1765540426421,0.0197315,92423.0,92422.0,0.21639869]
[1765540441789,0.0197315,92423.0,92421.0,0.24888775]
[1765540441991,0.01904,92423.0,92421.0,0.24888775]
[1765540442260,0.01904,92423.0,92421.0,0.21639897]
[1765540442401,0.21640337,92420.0,92419.0,0.0389314]
[1765540442603,0.2164104,92417.0,92415.0,0.0389314]
[1765540442991,0.21641274,92416.0,92415.0,0.0389314]
[1765540443215,0.2164104,92417.0,92416.0,0.03249132]
[1765540443348,0.29330146,92417.0,92416.0,0.07144864]
[1765540443961,0.29330146,92417.0,92416.0,0.03249132]
[1765540444168,0.29330146,92417.0,92416.0,0.07144855]
[1765540444555,0.27921229,92420.0,92416.0,0.28786129]
[1765540444762,0.06280702,92420.0,92417.0,0.25536567]
[1765540445003,0.27921113,92420.0,92417.0,0.21640844]
[1765540445702,0.27921113,92420.0,92417.0,0.22722896]
[1765540445824,0.30688923,92419.0,92416.0,0.08226918]
[1765540446033,0.09048241,92419.0,92416.0,0.08226918]
[1765540446293,0.01082028,92419.0,92417.0,0.2164104]
[1765540446428,0.28021113,92420.0,92417.0,0.2164104]
[1765540446780,0.05298686,92420.0,92418.0,0.21640773]
[1765540446911,0.05298686,92420.0,92418.0,0.21640623]
[1765540447311,0.26939033,92420.0,92417.0,0.22723067]
[1765540447559,0.34930053,92420.0,92417.0,0.22723067]
[1765540448367,0.36012069,92420.0,92417.0,0.22723067]
[1765540448540,0.36012069,92420.0,92418.0,0.21640756]
[1765540449064,0.13389706,92420.0,92418.0,0.21640756]
[1765540449385,0.13289706,92420.0,92418.0,0.21640756]
[1765540449762,0.08883426,92419.0,92418.0,0.21640756]
[1765540450387,0.08883426,92419.0,92417.0,0.22723061]
[1765540451336,0.08883426,92419.0,92418.0,0.21640805]
[1765540451846,0.08983426,92419.0,92417.0,0.22723061]
[1765540452245,0.08883426,92419.0,92417.0,0.22723061]
[1765540452422,0.08883426,92419.0,92418.0,0.21640805]
[1765540452605,0.08983426,92419.0,92418.0,0.21640805]
[1765540453868,0.08883426,92419.0,92418.0,0.21640805]
[1765540454157,0.09041053,92419.0,92418.0,0.21640805]
[1765540454380,0.09041053,92419.0,92417.0,0.22723061]
[1765540454578,0.04813676,92418.0,92417.0,0.22723061]
[1765540454788,0.04868423,92418.0,92417.0,0.22723061]
[1765540455772,0.00054747,92418.0,92417.0,0.22723061]
[1765540455938,0.00154747,92418.0,92417.0,0.22723061]
[1765540456139,0.00154747,92418.0,92417.0,0.26618784]
[1765540456596,0.00154747,92418.0,92417.0,0.22723061]
[1765540456775,0.00154747,92418.0,92417.0,0.26618784]
[1765540457270,0.00154747,92418.0,92417.0,0.22723061]
[1765540458992,0.00154747,92418.0,92417.0,0.26618784]
[1765540459602,0.00154747,92418.0,92417.0,0.22723061]
[1765540460582,0.00154747,92418.0,92417.0,0.27798061]
[1765540460798,0.01858747,92418.0,92417.0,0.30502825]
[1765540461291,0.01858747,92418.0,92417.0,0.31699825]
[1765540461638,0.01858747,92418.0,92417.0,0.28995061]
[1765540465733,0.01858747,92418.0,92417.0,0.26630061]
[1765540465923,0.01858747,92418.0,92417.0,0.25129061]
[1765540467162,0.01858747,92418.0,92417.0,0.28995061]
[1765540472861,0.00154747,92418.0,92417.0,0.31699825]
[1765540473081,0.01858747,92418.0,92417.0,0.28995061]
[1765540473211,0.01858747,92418.0,92417.0,0.31699825]
[1765540476877,0.00154747,92418.0,92417.0,0.31699825]
[1765540477626,0.00054747,92418.0,92417.0,0.31699825]
[1765540477905,0.00054747,92418.0,92417.0,0.31799825]
[1765540478925,0.00054747,92418.0,92417.0,0.31899825]
[1765540480791,0.00054747,92418.0,92417.0,0.36212623]
[1765540484284,0.00054747,92418.0,92417.0,0.31899825]
[1765540484489,0.00054747,92418.0,92417.0,0.36212623]
[1765540485071,0.00054747,92418.0,92417.0,0.31899825]
[1765540486268,0.00054747,92418.0,92417.0,0.31699825]
[1765540486595,0.00054747,92418.0,92417.0,0.32099825]
[1765540488047,0.00054747,92418.0,92417.0,0.36412623]
[1765540493558,0.00054747,92418.0,92417.0,0.32099825]
[1765540499618,0.00054747,92418.0,92417.0,0.31899825]
[1765540499829,0.00054747,92418.0,92417.0,0.31699825]
[1765540500053,0.00054747,92418.0,92417.0,0.31799825]
[1765540500265,0.00054747,92418.0,92417.0,0.31899825]
[1765540500673,0.00054747,92418.0,92417.0,0.31799825]
[1765540502332,0.00054747,92418.0,92417.0,0.31899825]
[1765540513108,0.00054747,92418.0,92417.0,0.25329061]
[1765540515380,0.00054747,92418.0,92417.0,0.27674061]
[1765540515535,0.00054747,92418.0,92417.0,0.27574061]
[1765540515739,0.00054747,92418.0,92417.0,0.27674061]
[1765540515968,0.00054747,92418.0,92417.0,0.27774061]
[1765540516166,0.00054747,92418.0,92417.0,0.29390061]
[1765540518561,0.00054747,92418.0,92417.0,0.32094825]
[1765540542652,0.00054747,92418.0,92417.0,0.24120061]
[1765540543070,0.28429796,92418.0,92417.0,0.002]
[1765540543687,0.28429796,92418.0,92417.0,0.001]
[1765540544325,0.21641319,92416.0,92413.0,0.01082098]
[1765540544546,0.02779,92414.0,92413.0,0.22723953]
[1765540544955,0.05213,92414.0,92413.0,0.22723953]
[1765540545585,0.05213,92414.0,92413.0,0.21641976]
[1765540546374,0.05374287,92414.0,92410.0,0.04978188]
[1765540546594,0.02434,92413.0,92410.0,0.04978188]
[1765540546800,0.02434,92413.0,92412.0,0.2164221]
[1765540546980,0.02434,92413.0,92411.0,0.255384]
[1765540547180,0.02434,92413.0,92412.0,0.2164221]
[1765540549776,0.0140551,92414.0,92413.0,0.21641976]
[1765540549976,0.0383951,92414.0,92413.0,0.21641976]
[1765540550173,0.0383951,92414.0,92411.0,0.22724467]
[1765540550453,0.03796287,92414.0,92412.0,0.21642093]
[1765540551584,0.03796287,92414.0,92413.0,0.21641976]
[1765540552350,0.01362287,92414.0,92413.0,0.21641976]
[1765540553833,0.01362287,92414.0,92412.0,0.21642093]
[1765540554003,0.01362287,92414.0,92413.0,0.21641976]
[1765540556364,0.01362287,92414.0,92412.0,0.21642093]
[1765540556534,0.01362287,92414.0,92413.0,0.21641976]
[1765540556966,0.0140551,92414.0,92413.0,0.21641976]
[1765540558467,0.01747223,92414.0,92413.0,0.26864976]
[1765540559050,0.00043223,92414.0,92413.0,0.26864976]
[1765540559360,0.01747223,92414.0,92413.0,0.26864976]
[1765540559891,0.01747223,92414.0,92413.0,0.24374976]
[1765540562493,0.01747223,92414.0,92413.0,0.22851976]
[1765540564818,0.00043223,92414.0,92413.0,0.22851976]
[1765540565229,0.00043223,92414.0,92413.0,0.29181031]
[1765540565428,0.01747223,92414.0,92413.0,0.25284976]
[1765540565658,0.00043223,92414.0,92413.0,0.25284976]
[1765540565851,0.01747223,92414.0,92413.0,0.25284976]
[1765540566057,0.00043223,92414.0,92413.0,0.25284976]
[1765540566251,0.00043223,92414.0,92413.0,0.29181031]
[1765540566470,0.01747223,92414.0,92413.0,0.30739031]
[1765540566803,0.01747223,92414.0,92413.0,0.26842976]
[1765540567335,0.01747223,92414.0,92413.0,0.30739031]
[1765540569374,0.01747223,92414.0,92413.0,0.26842976]
[1765540570858,0.00043223,92414.0,92413.0,0.26842976]
[1765540571082,0.01747223,92414.0,92413.0,0.26842976]
[1765540574064,0.00043223,92414.0,92413.0,0.26842976]
[1765540574236,0.01747223,92414.0,92413.0,0.26842976]
[1765540576731,0.00043223,92414.0,92413.0,0.26842976]
[1765540578588,0.00043223,92414.0,92413.0,0.27042976]
[1765540578820,0.00043223,92414.0,92413.0,0.28746976]
[1765540589001,0.00043223,92414.0,92413.0,0.33059774]
[1765540594435,0.00043223,92414.0,92413.0,0.28746976]
[1765540606414,0.00043223,92414.0,92413.0,0.33059774]
[1765540612618,0.00043223,92414.0,92413.0,0.28746976]
[1765540631850,0.00043223,92414.0,92413.0,0.62129774]
[1765540632106,3.229e-05,92414.0,92413.0,0.62129774]
[1765540661261,0.01704,92437.0,92436.0,0.21636591]
[1765540661479,0.05315651,92442.0,92441.0,0.21635421]
[1765540661680,0.07180938,92442.0,92441.0,0.21635421]
[1765540663175,0.07880938,92442.0,92441.0,0.21735421]
[1765540664005,0.10946938,92442.0,92441.0,0.21835421]
[1765540664551,0.11856938,92442.0,92441.0,0.21735421]
[1765540664700,0.12056938,92442.0,92441.0,0.21735421]
[1765540664914,0.11356938,92442.0,92441.0,0.21635421]
[1765540665123,0.16007337,92442.0,92441.0,0.21635421]
[1765540665664,0.11556938,92442.0,92441.0,0.21635421]
[1765540670267,0.11556938,92442.0,92430.0,0.05843525]
[1765540670268,0.05001839,92420.0,92414.0,0.05843525]
[1765540670471,0.04450399,92410.0,92404.0,0.01082204]
[1765540670758,0.01082052,92417.0,92404.0,0.01082204]
[1765540670759,0.01708,92409.0,92404.0,0.01082204]
[1765540670998,0.01708,92409.0,92404.0,0.05738612]
[1765540671242,0.01708,92409.0,92406.0,0.0108218]
[1765540671431,0.00712163,92408.0,92401.0,0.01082239]
[1765540671586,0.01082204,92404.0,92399.0,0.2597689]
[1765540671796,0.01082227,92402.0,92399.0,0.03249459]
[1765540671998,0.21645021,92400.0,92399.0,0.03249459]
[1765540673035,0.21645021,92400.0,92399.0,0.03349459]
[1765540673239,0.21644787,92401.0,92399.0,0.03349459]
[1765540673599,0.01082227,92402.0,92399.0,0.03349459]
[1765540673820,0.21644911,92401.0,92399.0,0.03349459]
[1765540673986,0.21645021,92400.0,92399.0,0.03349459]
[1765540674188,0.22726784,92402.0,92399.0,0.03349459]
[1765540674437,0.01082215,92403.0,92399.0,0.04431721]
[1765540674637,0.01082227,92402.0,92399.0,0.26176851]
[1765540674838,0.01082227,92402.0,92400.0,0.21645009]
[1765540675056,0.22726665,92403.0,92400.0,0.2272726]
[1765540675286,0.21644621,92402.0,92400.0,0.01082251]
[1765540675467,0.22726791,92402.0,92399.0,0.28568968]
[1765540675631,0.22726791,92402.0,92399.0,0.25094633]
[1765540675831,0.22726791,92402.0,92399.0,0.03249459]
[1765540676203,0.22726734,92403.0,92400.0,0.001]
[1765540676423,0.01082215,92403.0,92401.0,0.2164478]
[1765540676629,0.2272676,92403.0,92400.0,0.21845013]
[1765540676837,0.22726538,92403.0,92401.0,0.21644773]
[1765540677042,0.01082215,92403.0,92401.0,0.21644773]
[1765540677720,0.02790215,92403.0,92401.0,0.21644773]
[1765540678303,0.24434559,92403.0,92401.0,0.21644773]
[1765540678505,0.22727013,92402.0,92401.0,0.001]
[1765540678719,0.24434578,92403.0,92401.0,0.001]
[1765540679357,0.01708,92403.0,92402.0,0.21644553]
[1765540679971,0.01708,92403.0,92401.0,0.21844769]
[1765540680322,0.01708,92403.0,92402.0,0.21644553]
[1765540681603,0.01708,92406.0,92405.0,0.01082192]
[1765540681807,0.01708,92406.0,92405.0,0.22726042]
[1765540684636,0.01708,92406.0,92405.0,0.26615042]
[1765540691570,0.01708,92406.0,92405.0,0.24356042]
[1765540695809,0.01708,92406.0,92405.0,0.26615042]
[1765540696174,0.01708,92406.0,92405.0,0.27760042]
[1765540699983,0.01708,92406.0,92405.0,0.23871042]
[1765540700621,0.01901745,92422.0,92416.0,0.21641274]
[1765540700835,0.00023048,92422.0,92421.0,0.24532103]
[1765540701055,0.01731048,92422.0,92421.0,0.24532103]
[1765540701277,0.00023048,92422.0,92421.0,0.26840103]
[1765540701923,0.00023048,92422.0,92421.0,0.27922049]
[1765540702545,0.00023048,92422.0,92421.0,0.27960925]
[1765540702811,0.00423048,92422.0,92421.0,0.27960925]
[1765540703227,0.00023048,92422.0,92421.0,0.27960925]
[1765540703435,0.00623048,92422.0,92421.0,0.27960925]
[1765540703643,0.00123048,92422.0,92421.0,0.27960925]
[1765540704061,0.00223048,92422.0,92421.0,0.27960925]
[1765540714066,0.00223048,92422.0,92421.0,0.26878979]
[1765540718706,0.00223048,92422.0,92421.0,0.24570979]
[1765540718913,0.00223048,92422.0,92421.0,0.21678979]
[1765540719844,0.00223048,92422.0,92421.0,0.00038876]
[1765540720050,0.24544547,92422.0,92421.0,0.00038876]
[1765540721054,0.02904678,92422.0,92421.0,0.00038876]
[1765540721361,0.24544547,92422.0,92421.0,0.00038876]
[1765540729459,0.02904678,92422.0,92421.0,0.00038876]
[1765540729673,0.00223048,92422.0,92421.0,0.00038876]
[1765540729884,0.00223048,92422.0,92421.0,0.25674979]
[1765540730087,0.01931048,92422.0,92421.0,0.25674979]
[1765540731065,0.00223048,92422.0,92421.0,0.25674979]
[1765540739186,0.00223048,92422.0,92421.0,0.29987777]
[1765540739585,0.00223048,92422.0,92421.0,0.25674979]
[1765540739808,0.00123048,92422.0,92421.0,0.25674979]
[1765540740007,0.00123048,92422.0,92421.0,0.29987777]
[1765540740232,0.00023048,92422.0,92421.0,0.30187777]
[1765540740468,0.00023048,92422.0,92421.0,0.29987777]
[1765540740673,0.00023048,92422.0,92421.0,0.30587777]
[1765540740840,0.00023048,92422.0,92421.0,0.26274979]
[1765540741167,0.00023048,92422.0,92421.0,0.25974979]
[1765540741371,0.00023048,92422.0,92421.0,0.26274979]
[1765540750231,0.00023048,92422.0,92421.0,0.30587777]
[1765540752392,0.00023048,92422.0,92421.0,0.26274979]
[1765540753741,0.00023048,92422.0,92421.0,0.22278979]
[1765540753979,0.00023048,92422.0,92421.0,0.00638876]
[1765540754418,0.00023048,92422.0,92421.0,0.22278979]
[1765540754970,0.00023048,92422.0,92421.0,0.27082979]
[1765540755188,0.00023048,92422.0,92421.0,0.27282979]
[1765540755570,0.00023048,92422.0,92421.0,0.26982979]
[1765540756038,0.00023048,92422.0,92421.0,0.27182979]
[1765540758100,0.00023048,92422.0,92421.0,0.23231979]
[1765540758435,0.00023048,92422.0,92421.0,0.22078979]
[1765540768055,0.00023048,92422.0,92421.0,0.24563979]
[1765540768616,0.00023048,92422.0,92421.0,0.27214979]
[1765540775471,0.00023048,92422.0,92421.0,0.30463604]
[1765540782337,0.00023048,92422.0,92421.0,0.34776402]
[1765540784350,0.00023048,92422.0,92421.0,0.63846402]
[1765540785907,0.0004,92450.0,92449.0,0.21633549]
[1765540786106,0.0004,92450.0,92449.0,0.26906549]
[1765540787097,0.0004,92450.0,92449.0,0.32858957]
[1765540787708,0.0014,92450.0,92449.0,0.32858957]
[1765540788993,0.0004,92450.0,92449.0,0.32858957]
[1765540789336,0.0014,92450.0,92449.0,0.32858957]
[1765540789845,0.0004,92450.0,92449.0,0.32858957]
[1765540790033,0.0004,92450.0,92449.0,0.32958957]
[1765540790238,0.0004,92450.0,92449.0,0.33058957]
[1765540796555,0.00120642,92450.0,92449.0,0.33058957]
[1765540799837,0.00120642,92450.0,92449.0,0.30354193]
[1765540800603,0.00120642,92450.0,92449.0,0.33058957]
[1765540801074,0.00120642,92450.0,92449.0,0.03447644]
[1765540801273,0.24306848,92450.0,92449.0,0.002]
[1765540801500,0.23619244,92450.0,92449.0,0.002]
[1765540801819,0.23619244,92450.0,92449.0,0.001]
[1765540802026,0.22715288,92449.0,92446.0,0.01081712]
[1765540802226,0.21634751,92444.0,92441.0,0.01081759]
[1765540802441,0.22716214,92445.0,92441.0,0.01081771]
[1765540802673,0.22716214,92445.0,92443.0,0.21634858]
[1765540802674,0.01081724,92445.0,92443.0,0.21634858]
[1765540802884,0.01243011,92445.0,92441.0,0.01081771]
[1765540803134,0.00161287,92445.0,92443.0,0.21634953]
[1765540803372,0.00161287,92445.0,92444.0,0.21634719]
[1765540803760,0.00161287,92445.0,92444.0,0.25740719]
[1765540804479,0.00161287,92445.0,92444.0,0.21634719]
[1765540805241,0.00161287,92445.0,92444.0,0.21734719]
[1765540805644,0.00161287,92445.0,92444.0,0.21834719]
[1765540807186,0.00157274,92445.0,92444.0,0.21834719]
[1765540808381,0.00157274,92445.0,92444.0,0.002]
[1765540808797,0.21858004,92445.0,92444.0,0.002]
[1765540809418,0.00223519,92445.0,92444.0,0.21834719]
[1765540810531,0.00223519,92445.0,92444.0,0.25940719]
[1765540812533,0.00066245,92445.0,92444.0,0.25940719]
[1765540812976,0.00066245,92445.0,92444.0,0.2702249]
[1765540816385,0.2170073,92445.0,92444.0,0.01281771]
[1765540816590,0.23562004,92445.0,92444.0,0.002]
[1765540820070,0.33290044,92445.0,92444.0,0.002]
[1765540820472,0.39022214,92445.0,92444.0,0.002]
[1765540821041,0.39022214,92445.0,92444.0,0.001]
[1765540821229,0.22718647,92436.0,92433.0,0.01081864]
[1765540821459,0.01081841,92435.0,92431.0,0.22719211]
[1765540821673,0.22718721,92435.0,92432.0,0.22719278]
[1765540822756,0.21637168,92434.0,92432.0,0.01081876]